[Event "87th Spanish Championship 2022"]
[Site "Linares"]
[Date "2022.08.11"]
[Round "1.1"]
[White "Pomes Marcet, Juan"]
[Black "Santos Latasa, Jaime"]
[Result "0-1"]
[ECO "E46"]
[WhiteElo "2233"]
[BlackElo "2675"]
[Annotator "TA"]
[PlyCount "80"]
[EventDate "2022.08.11"]
[EventType "swiss"]
[EventCountry "ESP"]
[SourceTitle "playchess.com"]
[Source "ChessBase"]
[SourceQuality "1"]
[TimeControl "5400+30"]

{[%evp 12,80,0,-20,0,-33,-20,-19,-22,-20,-13,-16,-25,-25,-4,-22,-24,-23,-15,-41,-27,-29,-30,-31,-18,-27,-9,-37,-20,-28,-3,-44,0,-13,0,-47,-39,-97,-75,-77,-28,-67,-37,-24,-11,-10,-13,-29,-28,-76,-29,-33,-45,-52,-54,-52,-66,-57,-56,-129,0,0,0,-45,-32,-58,0,-242,-248,-29978,-29978]} 1. d4 {[%emt 0:00:02]} Nf6 {[%emt 0:00:07]} 2. c4 {[%emt 0:00:07]} e6 {[%emt 0:00:05]} 3. Nc3 {[%emt 0:00:08]} Bb4 {[%emt 0:00:05]} 4. e3 {[%emt 0:00:19]} O-O {[%emt 0:00:08]} 5. Nge2 {[%emt 0:00:11]} Re8 {[%emt 0:00:08]} 6. a3 {[%emt 0:00:25]} Bf8 {[%emt 0:01:17]} 7. g3 {[%emt 0:01:54]} d5 {[%emt 0:00:55] Against e4. E46: Nimzo-Indian: Rubinstein: 4 e3 0-0 5 Ne2 without early Bd3.} 8. cxd5 {[%emt 0:01:00]} exd5 {[%emt 0:00:24]} 9. Bg2 {[%emt 0:00:07]} a5 {[%emt 0:00:07] The position is equal.} 10. O-O {[%emt 0:00:40]} Na6 {[%emt 0:00:29][%cal Bb8a6,Ba6c5,Bc5e6][%mdl 32]} 11. Qc2 {[%emt 0:07:39]} c6 {[%emt 0:00:19]} 12. f3 {[%emt 0:07:02]} c5 {[%emt 0:00:25] [#]} 13. dxc5 $146 {[%emt 0:06:42]} ({Predecessor:} 13. Rd1 cxd4 14. Nxd4 Bd7 15. g4 h6 16. Qf2 Nc5 17. Rb1 Rc8 18. Nde2 Nb3 19. Nd4 {0-1 (48) Reilly,T (2329)-Makarov,M (2525) Yerevan 2004}) 13... Nxc5 {[%emt 0:03:00]} 14. Rd1 {[%emt 0:05:37]} Qb6 {[%emt 0:03:25]} 15. Nd4 {[%emt 0:07:44] Against Nb3} ({But not} 15. Nxd5 $2 Nxd5 16. Rxd5 Nb3 $19) 15... Bd7 {[%emt 0:00:34]} 16. g4 {[%emt 0:16:26]} Ne6 {[%emt 0:03:09]} 17. Qf2 {[%emt 0:06:31]} Bc5 {[%emt 0:09:28]} 18. Bf1 {[%emt 0:11:38]} Rac8 {[%emt 0:04:21]} 19. Kh1 {[%emt 0:02:22]} h6 {[%emt 0:01:45]} 20. a4 {[%emt 0:03:58]} Bb4 {[%emt 0:04:35]} 21. Ncb5 {[%emt 0:01:34]} Bxb5 {[%emt 0:02:58]} 22. Bxb5 {[%emt 0:00:36]} Re7 {[%emt 0:00:12]} 23. Bd3 {[%emt 0:07:24]} (23. Nf5 $11 {was preferrable.}) 23... g6 {[%emt 0:00:30]} 24. Bd2 {[%emt 0:02:52]} (24. Qh4 $15 Nxd4 25. exd4) 24... Bxd2 {[%emt 0:01:26]} 25. Rxd2 {[%emt 0:00:09]} Kg7 {[%emt 0:00:14]} (25... Nxd4 $17 26. exd4 Qb4) 26. Bb5 {[%emt 0:01:47]} Nxd4 {[%emt 0:02:12]} 27. Rxd4 {[%emt 0:00:40]} Rc5 {[%emt 0:00:44]} 28. Rad1 {[%emt 0:00:56]} Qc7 {[%emt 0:00:16]} 29. R4d3 {[%emt 0:02:11]} Qe5 {[%emt 0:02:33]} 30. Kg2 {[%emt 0:02:40]} (30. h4 $11) 30... Rec7 {[%emt 0:00:52] Black is more active.} (30... h5 $17 31. gxh5 (31. h3 Rec7 $15) 31... Qg5+ 32. Kh1 Qxh5) 31. Rd4 {[%emt 0:00:07]} h5 {[%emt 0:01:59] White must now prevent ...hxg4.} 32. h3 {[%emt 0:01:14]} hxg4 {[%emt 0:00:08]} 33. hxg4 {[%emt 0:00:06]} Rc2 {[%emt 0:00:08]} 34. R1d2 {[%emt 0:00:11]} Rc1 {[%emt 0:01:05]} 35. Rd1 {[%emt 0:01:42]} (35. Be2 $15) 35... Rxd1 {[%emt 0:04:16]} ({Black should play} 35... R7c2 $17 36. R1d2 Rc8) 36. Rxd1 $11 {[%emt 0:00:05]} Rc8 $40 {[%emt 0:01:10][%mdl 128] Black attacks.} 37. Bf1 {[%emt 0:01:34]} Qg5 {[%emt 0:02:26][%cal Of6g4] Threatens to win with ...Nxg4!} 38. Rd4 {[%emt 0:00:36]} Ne4 {[%emt 0:02:20]} 39. Qe1 $2 {[%emt 0:01:40]} ({Don't blunder} 39. fxe4 $2 Qxg4+ 40. Kh1 Rh8+ 41. Qh2 Rxh2+ 42. Kxh2 dxe4 $19) (39. Qe2 $11 {and White has nothing to worry.} Nf6 40. Qd2) 39... Rc2+ $19 {[%emt 0:00:27]} 40. Be2 $2 {[%emt 0:00:11] [#]} (40. Kg1 $19) 40... Qxe3 {[%emt 0:00:14] Weighted Error Value: White=0.48/Black=0.15 (very precise)} 0-1

[Event "87th Spanish Championship 2022"]
[Site "Linares"]
[Date "2022.08.11"]
[Round "1.2"]
[White "Iturrizaga Bonelli, Eduardo"]
[Black "Fernandez Camello, Alejandro"]
[Result "1-0"]
[ECO "A20"]
[WhiteElo "2619"]
[BlackElo "2199"]
[Annotator "TA"]
[PlyCount "57"]
[EventDate "2022.08.11"]
[EventType "swiss"]
[EventCountry "ESP"]
[SourceTitle "playchess.com"]
[Source "ChessBase"]
[SourceQuality "1"]
[TimeControl "5400+30"]

{[%evp 9,57,31,56,6,8,7,8,8,8,-117,22,37,22,28,85,86,78,81,79,90,91,98,97,78,93,83,93,102,102,81,130,129,120,129,132,82,100,87,164,159,151,155,399,395,392,377,362,358,1099,989]} 1. c4 {[%emt 0:01:07]} e5 {[%emt 0:00:01]} 2. g3 {[%emt 0:00:18]} c6 {[%emt 0:00:01]} 3. d4 {[%emt 0:00:26]} e4 {[%emt 0:00:09]} 4. Qa4 {[%emt 0:00:47]} Nf6 {[%emt 0:01:32]} 5. Nc3 {[%emt 0:00:53]} Na6 {[%emt 0:09:26]} 6. Bg2 {[%emt 0:11:56] A20: English Opening: 1...e5.} (6. a3 $14) 6... Bb4 $11 {[%emt 0:02:40]} 7. Bg5 {[%emt 0:06:04]} h6 $1 {[%emt 0:15:16]} 8. Bxf6 {[%emt 0:01:36] The position is equal.} Qxf6 {[%emt 0:00:02]} 9. e3 {[%emt 0:00:06]} (9. Rd1 $11 {keeps the balance.}) 9... O-O {[%emt 0:01:22]} (9... Bxc3+ $17 10. bxc3 Nc5 $1 {[%mdl 512]}) 10. Nge2 {[%emt 0:03:16]} d5 {[%emt 0:02:12] [#]} 11. O-O $146 {[%emt 0:02:06]} ({Predecessor:} 11. a3 Bxc3+ 12. Nxc3 Nc7 13. Rc1 Qd8 14. cxd5 cxd5 15. O-O b6 16. f3 exf3 17. Bxf3 {0-1 (38) Schaller,S (2289)-Gaponenko,I (2438) Germany 2010}) 11... Be6 {[%emt 0:12:39]} (11... Rd8 $11) 12. cxd5 $16 {[%emt 0:00:56]} cxd5 {[%emt 0:00:09]} 13. Qb5 {[%emt 0:01:09]} Qd8 {[%emt 0:07:21]} 14. Nf4 {[%emt 0:24:33]} Bxc3 {[%emt 0:02:34]} 15. bxc3 {[%emt 0:00:06][%cal Bb2c3,Bc3c4][%mdl 32]} Rb8 {[%emt 0:07:08]} 16. Nxe6 {[%emt 0:03:24] White is more active.} fxe6 {[%emt 0:00:05]} 17. c4 {[%emt 0:00:03]} Nc7 {[%emt 0:00:36]} 18. Qb3 {[%emt 0:00:08]} Rf7 19. Rac1 {[%emt 0:00:17]} b5 {[%emt 0:07:28] [#]} (19... Qd6 $142) 20. cxd5 $1 {[%emt 0:00:35]} exd5 {[%emt 0:00:05]} 21. Rc5 {[%emt 0:00:28]} a5 {[%emt 0:03:19]} 22. a3 {[%emt 0:01:24]} (22. a4 $142) 22... a4 {[%emt 0:04:41]} 23. Qa2 {[%emt 0:00:49]} b4 {[%emt 0:00:02]} (23... Qd7 $16 {was called for.}) 24. axb4 $18 {[%emt 0:00:07]} Rxb4 {[%emt 0:00:05]} 25. Rfc1 {[%emt 0:00:25][%cal Og2e4] Black must now prevent Bxe4!} Qb8 $2 {[%emt 0:04:53] [#] This move loses the game for Black.} (25... Rb7 $16) 26. Bxe4 $1 {[%emt 0:07:35][%mdl 512]} Rb2 {[%emt 0:02:26] [#]} 27. Rxc7 $1 {[%emt 0:00:06][%mdl 512]} Rxc7 {[%emt 0:06:32]} 28. Qxd5+ {[%emt 0:00:19]} Rf7 $2 {[%emt 0:01:04]} (28... Kh8 29. Rxc7 Qxc7) 29. Qe6 {[%emt 0:01:23] Weighted Error Value: White=0.15 (very precise) /Black=0.40} 1-0

[Event "87th Spanish Championship 2022"]
[Site "Linares"]
[Date "2022.08.11"]
[Round "1.3"]
[White "Cuellar Montes, Alejandro"]
[Black "Salgado Lopez, Ivan"]
[Result "0-1"]
[ECO "B94"]
[WhiteElo "2125"]
[BlackElo "2604"]
[Annotator "TA"]
[PlyCount "110"]
[EventDate "2022.08.11"]
[EventType "swiss"]
[EventCountry "ESP"]
[SourceTitle "playchess.com"]
[Source "ChessBase"]
[SourceQuality "1"]
[TimeControl "5400+30"]

{[%evp 12,110,23,15,24,16,27,0,0,0,0,-4,0,0,4,-11,-14,-58,38,0,64,-7,43,40,205,206,217,223,211,218,227,228,360,337,342,345,497,454,474,106,109,35,27,18,29,10,37,0,0,0,0,0,0,-62,-64,-85,-82,-113,-86,-70,-79,-126,-78,-82,-53,-59,-61,-157,-160,-145,-145,-145,-158,-194,-189,-195,-188,-187,-187,-597,-567,-484,-450,-754,-744,-687,-673,-1512,-1390,-1975,-1400,-5806,-5817,-29976,-29977,-29977,-29977,-29978,-29979,-29997,-29998]} 1. e4 {[%emt 0:00:05]} c5 {[%emt 0:00:17]} 2. Nf3 {[%emt 0:00:21]} d6 {[%emt 0:00:11]} 3. d4 {[%emt 0:00:09]} cxd4 {[%emt 0:00:13]} 4. Nxd4 {[%emt 0:00:06]} Nf6 {[%emt 0:00:10]} 5. Nc3 {[%emt 0:00:08]} a6 {[%emt 0:00:06]} 6. Bg5 {[%emt 0:00:38]} Nbd7 {[%emt 0:00:12]} 7. Bc4 {[%emt 0:01:30]} Qb6 {[%emt 0:00:19] B94: Sicilian Najdorf: 6 Bg5 Nbd7.} 8. Bb3 {[%emt 0:02:11]} e6 {[%emt 0:00:11]} 9. Qd2 {[%emt 0:00:30]} Be7 {[%emt 0:00:20] The position is equal.} 10. O-O-O {[%emt 0:00:38]} Nc5 {[%emt 0:00:15]} 11. f3 {[%emt 0:00:13] 11.Rhe1 is more fashionable.} Qc7 {[%emt 0:00:27]} 12. Kb1 $36 {[%emt 0:01:02][%mdl 2048] White is pushing.} Rb8 {[%emt 0:03:31]} 13. h4 {[%emt 0:03:54]} b5 {[%emt 0:01:19] [#]} 14. a3 $146 {[%emt 0:01:22]} ({Predecessor:} 14. g4 Bd7 15. Nf5 exf5 16. Bxf6 Nxb3 17. axb3 Bxf6 18. Nd5 Qc6 19. Nxf6+ gxf6 20. Qh6 {½-½ (29) Binas,J (2115)-Cvak,R (2271) ICCF email 2014}) 14... Qb7 {[%emt 0:01:08]} (14... Bd7 $15) 15. Rhe1 {[%emt 0:04:40][%cal Ob3d5]} (15. Qe2 $5 {[%cal Re4e5]}) 15... Bd7 {[%emt 0:12:39] [#]} (15... h6 $11 16. Bxf6 Bxf6) 16. g4 {[%emt 0:05:41]} (16. Nf5 $1 $14 exf5 17. Bd5 (17. exf5 Bxf5 18. Bxf6 gxf6 $15)) 16... O-O {[%emt 0:04:47]} (16... b4 $11 17. axb4 Qxb4) 17. h5 $14 {[%emt 0:02:07]} h6 $2 {[%emt 0:07:59] [#]} ({Black should try} 17... b4 $14 18. axb4 Qxb4) 18. Bxh6 $1 $18 {[%emt 0:07:51][%mdl 512]} Nxb3 {[%emt 0:17:46]} (18... Kh7 19. Bg5) 19. cxb3 {[%emt 0:06:18]} (19. Nxb3 gxh6 20. Qxh6 Rfc8) 19... Nh7 {[%emt 0:00:43]} 20. Be3 {[%emt 0:00:47]} b4 {[%emt 0:00:07]} 21. axb4 {[%emt 0:02:28] aiming for g5.} Qxb4 {[%emt 0:00:07]} (21... f6 {is a better defense.} 22. Qc2 Rf7) 22. g5 $1 {[%emt 0:05:01]} Rfc8 {[%emt 0:00:10]} 23. g6 {[%emt 0:01:47]} fxg6 {[%emt 0:00:35]} (23... Nf8 $142 24. Nf5 Bf6) 24. hxg6 {[%emt 0:00:05] Black must now prevent Qh2.} Nf8 {[%emt 0:00:08]} 25. Nf5 $2 {[%emt 0:04:00]} Bf6 $16 {[%emt 0:02:28] [#]} (25... exf5 $2 26. Nd5 Re8 27. Nxb4 $18) (25... Nxg6 $2 26. Rg1 (26. Nxe7+ Nxe7 27. Rg1 Qxb3 $16) 26... Bf8 27. Rxg6 $18) 26. e5 {[%emt 0:14:09]} (26. Bd4 $1 $16 {Bxf6 is the strong threat.} exf5 27. Bxf6 gxf6 28. Rh1 Qxb3 29. Nd5 Qc2+ 30. Qxc2 Rxc2 31. Nxf6+ (31. Kxc2 Ba4+ 32. Kc3 Bxd1 $16) (31. Ne7+ Kg7 $16) 31... Kg7 32. Nh5+ Kg8 33. Nf6+ (33. Kxc2 Ba4+ 34. Kc3 Rc8+ 35. Kb4 Bxd1 $16) 33... Kg7 34. Nh5+ Kg8 35. Nf6+ (35. Kxc2 Ba4+ 36. Kc1 Rc8+ 37. Kb1 Bc2+ 38. Ka2 Bxd1 $16)) 26... dxe5 $14 {[%emt 0:05:08]} 27. Nd6 {[%emt 0:00:20]} Rc7 {[%emt 0:00:50]} 28. Nce4 {[%emt 0:09:46]} Qxd2 {[%emt 0:04:09] Dancing on a razor blade.} (28... Qxb3 $2 29. Nxf6+ gxf6 30. Ne4 Nxg6 31. Nxf6+ Kf7 32. Nxd7 $18) 29. Bxd2 {[%emt 0:08:04]} Rxb3 {[%emt 0:01:33]} 30. Ba5 {[%emt 0:00:29]} Ra7 $1 {[%emt 0:04:02]} 31. Bc3 {[%emt 0:04:46]} Bc6 {[%emt 0:01:27]} (31... Nxg6 $2 32. Rg1 Kh7 33. Rg4 $18) 32. Nc5 {[%emt 0:02:23]} ({White should play} 32. Rg1 $11) 32... Rb8 $15 {[%emt 0:02:34]} 33. Bxe5 {[%emt 0:03:51]} Bxf3 {[%emt 0:02:10] Hoping for ...Bxe5. This bishop pair is nice.} (33... Nxg6 $2 34. Bxf6 gxf6 35. Rg1 $18) 34. Rd4 {[%emt 0:04:03]} Bxe5 {[%emt 0:08:41]} ({Don't play} 34... Nxg6 35. Bxf6 gxf6 36. Rxe6 $11) 35. Rxe5 {[%emt 0:00:08]} Bd5 {[%emt 0:00:11]} 36. Rg5 {[%emt 0:01:46] [#]} (36. Re3 $142) 36... a5 {[%emt 0:05:50]} (36... Rd8 $142 $1 {[%cal Rd8d6]} 37. Nc4 Rc7) 37. Rf4 {[%emt 0:01:49]} Rd8 {[%emt 0:02:01]} 38. Rf7 {[%emt 0:02:38]} Raa8 {[%emt 0:03:51]} 39. Rxd5 {[%emt 0:00:09]} exd5 $17 {[%emt 0:01:14][%cal Be6d5,Bd5d4,Bd4d3,Bd3d2][%mdl 32]} 40. Nf5 {[%emt 0:00:04] Intending Ne7+ and mate.} Kh8 {[%emt 0:00:46]} 41. Rxg7 {[%emt 0:01:05][%cal Oc5e6] [#]} Rd6 {[%emt 0:02:30][%mdl 512] Against Ne6} 42. Nxd6 {[%emt 0:01:53]} (42. Rf7 Rxg6) 42... Kxg7 {[%emt 0:00:08][%mdl 4096] Endgame KRN-KNN} 43. Nf5+ {[%emt 0:00:02]} Kf6 {[%emt 0:02:10]} 44. Ne3 {[%emt 0:00:04]} d4 {[%emt 0:01:48]} 45. Nc2 {[%emt 0:00:08]} (45. g7 {was the crucial defense.} Kxg7 46. Nf5+ Kf6 47. Nxd4) 45... Rd8 $19 {[%emt 0:00:36]} 46. g7 {[%emt 0:01:44]} Kxg7 {[%emt 0:00:18]} 47. Nb3 {[%emt 0:00:14]} (47. Nd3 $142) 47... d3 {[%emt 0:02:49]} 48. Ne3 {[%emt 0:00:12]} a4 {[%emt 0:01:01][%cal Ba5a4,Ba4b3][%mdl 32]} 49. Nc5 {[%emt 0:00:44]} d2 {[%emt 0:00:32]} 50. Nd1 {[%emt 0:00:54]} Rc8 {[%emt 0:00:05]} 51. Nd3 {[%emt 0:00:05]} Ne6 {[%emt 0:00:56][%cal Oe6f4] ( -> ...Nf4!)} 52. b3 {[%emt 0:00:56]} axb3 {[%emt 0:00:26] Black mates.} 53. Kb2 {[%emt 0:00:07]} Nd4 {[%emt 0:00:11]} 54. N3f2 {[%emt 0:00:48]} Rc2+ {[%emt 0:00:39]} 55. Kb1 {[%emt 0:00:05]} Nb5 {[%emt 0:00:22] What a bad dream for White.  Weighted Error Value: White=0.89/Black=0.19 (very precise)} 0-1

[Event "87th Spanish Championship 2022"]
[Site "Linares"]
[Date "2022.08.11"]
[Round "1.4"]
[White "Yuffa, Daniil"]
[Black "Garcia Gimenez, Santiago"]
[Result "1-0"]
[ECO "D90"]
[WhiteElo "2603"]
[BlackElo "2193"]
[Annotator "TA"]
[PlyCount "51"]
[EventDate "2022.08.11"]
[EventType "swiss"]
[EventCountry "ESP"]
[SourceTitle "playchess.com"]
[Source "ChessBase"]
[SourceQuality "1"]
[TimeControl "5400+30"]

{[%evp 9,51,-8,-15,-10,0,-13,-27,-3,0,0,60,-60,16,18,15,-53,0,0,95,31,20,43,162,154,155,0,256,224,274,259,722,638,29986,29987,29992,29993,29993,29994,29994,29995,29995,29990,29996,-283]} 1. d4 {[%emt 0:05:36]} Nf6 {[%emt 0:00:28]} 2. c4 {[%emt 0:01:19]} g6 {[%emt 0:00:39]} 3. Nc3 {[%emt 0:00:09]} d5 {[%emt 0:00:13]} 4. Nf3 {[%emt 0:00:05]} Bg7 {[%emt 0:00:35]} 5. h4 {[%emt 0:00:05]} dxc4 {[%emt 0:08:40][%cal Oc7c5]} 6. e4 {[%emt 0:00:08] D90: Grünfeld: 4 Nf3 Bg7 sidelines.} c5 {[%emt 0:00:59]} 7. d5 {[%emt 0:00:09]} b5 {[%emt 0:02:43] Prevents Qa4.} 8. h5 {[%emt 0:00:25] Black must now prevent h6. Black has an edge.} O-O {[%emt 0:05:55]} (8... gxh5 9. e5 Nfd7 10. Rxh5 $16) 9. hxg6 {[%emt 0:00:07]} hxg6 {[%emt 0:00:22] [#]} (9... fxg6 $11 10. Rh4 Qa5) 10. Rh4 $146 {[%emt 0:08:03]} (10. Nxb5 Qa5+ 11. Nc3 Nxe4 $15) (10. Bh6 $1 $14) ({Predecessor:} 10. e5 Ng4 11. Bf4 Nd7 12. Nxb5 Qb6 13. Bxc4 a6 14. Nc3 Qxb2 15. Bd2 Qb4 16. Be2 Ndxe5 {0-1 (30) Polak,T (2545)-Plat,V (2536) Zlin 2021}) 10... b4 {[%emt 0:07:44]} (10... e6 $1 $15 11. d6 Qa5) 11. Na4 $36 {[%emt 0:00:32][%mdl 2048] White fights for an advantage.} e6 {[%emt 0:01:29]} 12. d6 {[%emt 0:08:25]} (12. Nxc5 exd5 13. Bg5 Nbd7 $19) ({White should try} 12. dxe6 $11 Qxd1+ 13. Kxd1 Bxe6 14. Nxc5) 12... Qa5 {[%emt 0:00:23]} (12... c3 $1 $15) 13. Bxc4 {[%emt 0:08:27]} Bd7 {[%emt 0:01:10]} (13... Bb7 $1 $11) 14. b3 {[%emt 0:07:41]} (14. Qd3 $1 $16) 14... Bxa4 $14 {[%emt 0:04:53]} (14... Nxe4 15. Rxe4 Bxa4 16. Qd3 $16) 15. bxa4 {[%emt 0:05:30] And now Ne5 would win.} Nxe4 {[%emt 0:00:18] [#]} 16. Rxe4 $1 $18 {[%emt 0:01:24]} Bxa1 {[%emt 0:00:08]} 17. Bh6 $2 {[%emt 0:01:29] 0x0.0005ed211a7ddp-1022s more active pieces. A strong pair of Bishops.} (17. Nh4 $1 $16 {[%cal Rh4g6]} b3+ 18. Kf1) 17... Bc3+ $2 {[%emt 0:00:29][%mdl 8192]} (17... Bf6 $1 $11) 18. Kf1 {[%emt 0:00:14]} Nd7 {[%emt 0:08:19][%cal Od7b6] [#]} 19. Qd3 $1 {[%emt 0:07:57][%cal Oe4e6] aiming for Rxe6!} Qxa4 $2 {[%emt 0:25:33] [#]} (19... Rae8 20. Rxe6 Rxe6 21. Bxe6 Qxa4) 20. Rxe6 $1 {[%emt 0:04:50][%mdl 512]} Rae8 {[%emt 0:10:02]} (20... Kh8 21. Re7) 21. Rxe8 {[%emt 0:04:29] White mates.} Rxe8 {[%emt 0:00:09]} 22. Qxg6+ {[%emt 0:00:46]} Kh8 {[%emt 0:00:16] [#]} 23. Bg7+ $1 {[%emt 0:00:11][%mdl 512]} Bxg7 {[%emt 0:00:10]} 24. Qh5+ {[%emt 0:00:03]} Bh6 {[%emt 0:01:03]} 25. Qxh6+ {[%emt 0:00:07]} Kg8 {[%emt 0:00:06] [#]} 26. Bxf7+ $1 {[%emt 0:00:10][%mdl 33344] Decoy, Back Rank.  Weighted Error Value: White=0.27 (precise) /Black=0.62. Loss on time!?} 1-0

[Event "87th Spanish Championship 2022"]
[Site "Linares"]
[Date "2022.08.11"]
[Round "1.5"]
[White "Hernandez Estevez, Yudania"]
[Black "Perez Candelario, Manuel"]
[Result "0-1"]
[ECO "C70"]
[WhiteElo "2193"]
[BlackElo "2578"]
[Annotator "TA"]
[PlyCount "70"]
[EventDate "2022.08.11"]
[EventType "swiss"]
[EventCountry "ESP"]
[SourceTitle "playchess.com"]
[Source "ChessBase"]
[SourceQuality "1"]
[TimeControl "5400+30"]

{[%evp 11,70,29,22,-3,27,-2,9,-6,0,0,0,-18,0,-31,-18,-38,-33,-47,-43,-39,-20,-90,-62,-96,-93,-211,-227,-233,-228,-225,-220,-316,-315,-377,-298,-478,-214,-902,-908,-918,-907,-822,-813,-865,-778,-1110,-1102,-1213,-1207,-1178,-985,-1168,-1134,-2208,-1958,-29988,-5219,-2708,-2364,-2038,-576]} 1. e4 {[%emt 0:00:03]} e5 {[%emt 0:00:04]} 2. Nf3 {[%emt 0:00:13]} Nc6 {[%emt 0:00:04]} 3. Bb5 {[%emt 0:00:07]} a6 {[%emt 0:00:05]} 4. Ba4 {[%emt 0:00:26]} f5 {[%emt 0:00:09]} 5. d3 {[%emt 0:03:55]} fxe4 {[%emt 0:01:19]} 6. dxe4 {[%emt 0:00:18]} Nf6 {[%emt 0:02:11]} 7. Nc3 {[%emt 0:03:50] C70: Ruy Lopez: 3...a6 4 Ba4, Norwegian and Delayed Schliemann.} d6 {[%emt 0:01:03]} 8. Bg5 {[%emt 0:09:57]} Be7 $1 {[%emt 0:03:36]} 9. Qd3 {[%emt 0:07:07] [#] The position is equal.} Bd7 $146 {[%emt 0:06:53]} ({Predecessor:} 9... O-O 10. Bxf6 Bxf6 11. Bxc6 bxc6 12. Qc4+ Kh8 13. Qxc6 Bg4 14. Nd5 Rc8 15. Rd1 g6 {1-0 (33) Ruiz Castillo,J (2503)-Figueredo Losada,L (2346) Mexico City 2021}) 10. a3 {[%emt 0:03:53]} O-O {[%emt 0:02:10]} 11. Bb3+ {[%emt 0:02:26]} (11. Bxf6 $5 Bxf6 12. O-O $11) 11... Kh8 {[%emt 0:00:06]} 12. h3 {[%emt 0:03:01] Prevents Bg4.} Qe8 {[%emt 0:05:31]} 13. O-O-O {[%emt 0:07:27]} b5 {[%emt 0:03:05]} 14. Be3 {[%emt 0:05:01]} Rb8 {[%emt 0:07:27]} 15. Nd5 {[%emt 0:01:57]} Bd8 {[%emt 0:08:39][%cal Of6e4]} 16. Nd2 {[%emt 0:05:40]} (16. Nxf6 $11 {remains equal.} Bxf6 17. Kb1) 16... a5 {[%emt 0:02:00][%cal Oc6d4] White is on the road to losing.} 17. Nxf6 {[%emt 0:07:57]} Bxf6 {[%emt 0:01:06]} 18. Nb1 {[%emt 0:03:38] [#]} (18. h4 $17 {was worth a try.}) 18... Nd4 $1 $19 {[%emt 0:05:07]} 19. Bd5 {[%emt 0:02:14]} c6 {[%emt 0:07:57][%cal Bc7c6,Bc6c5][%mdl 32]} 20. Ba2 {[%emt 0:00:07]} c5 {[%emt 0:00:45]} 21. c3 {[%emt 0:04:19] [#]} (21. h4 $142) 21... b4 $1 {[%emt 0:03:54]} 22. Bc4 {[%emt 0:04:29]} (22. axb4 axb4) 22... Be6 {[%emt 0:03:31][%cal Od6d5]} 23. axb4 $2 {[%emt 0:04:17]} (23. cxd4 Bxc4 24. Qxc4 cxd4 $19) (23. Rde1 {is a better defense.}) 23... axb4 {[%emt 0:02:19]} (23... Bxc4 $142 24. Qxc4 {[#]} axb4 $1) 24. Nd2 $2 {[%emt 0:04:36]} ({Reject} 24. cxd4 Bxc4 25. Qxc4 cxd4 $19) (24. Bxe6 Qxe6 25. cxd4 cxd4 26. Kd2) 24... bxc3 {[%emt 0:01:18]} 25. Qxc3 {[%emt 0:00:21]} Bxc4 {[%emt 0:03:12]} 26. Qxc4 {[%emt 0:00:15]} Rb4 {[%emt 0:01:02] Threatens to win with ...Qa4.} 27. Qa6 {[%emt 0:00:56]} Qe6 {[%emt 0:02:51] ...Rfb8 is the strong threat.} 28. Bxd4 {[%emt 0:02:30]} exd4 {[%emt 0:01:34][%cal Be5d4,Bd4d3][%mdl 32]} ({But not} 28... Rxd4 $2 29. h4 $19) 29. Nf3 {[%emt 0:02:01]} Rfb8 {[%emt 0:04:22]} 30. Rd2 {[%emt 0:02:37]} R4b6 {[%emt 0:03:30]} 31. Qa4 {[%emt 0:03:21]} d3 {[%emt 0:03:22][%cal Rf6b2]} 32. e5 {[%emt 0:00:33]} dxe5 {[%emt 0:00:50][%cal Bd6e5,Be5e4][%mdl 32]} 33. Re1 {[%emt 0:00:16]} Rb4 {[%emt 0:01:57]} (33... Ra6 $142 34. Re4 Rxa4 35. Rxa4 e4 36. Ra3 exf3 37. Raxd3 fxg2 38. Rg3 Qc4+ 39. Kb1 g1=Q+ 40. Rxg1 Qc3 41. Rd8+ Bxd8 42. b4 Rxb4+ 43. Ka2 Qb2#) 34. Qa3 {[%emt 0:03:34]} e4 {[%emt 0:01:05] ( -> ...Qc4+)} 35. Qxd3 {[%emt 0:00:21]} Qc4+ {[%emt 0:01:36] Weighted Error Value: White=1.08/Black=0.32} (35... Ra8 $142 36. Rc2 Ra1+ 37. Kd2 Rxe1) 0-1